Cogmind - Beta 13 @@@ ROGUE MODE // 2024.04.14 @ 22:25:56 Player: m1m1c Result: Destroyed by S-27 Virus with Autogun Performance ------------- Evolutions (3) 1500 Regions Visited (4) 800 Robots Destroyed (13) 65 Value Destroyed (341) 341 Prototype IDs (3) 60 Alien Tech Used (0) 0 Bonus (0) 0 TOTAL SCORE: 2766 Bonus ------- None Cogmind --------- Core Integrity 0/700 Matter 26/300 Energy 100/100 System Corruption 4% Temperature Cool (0) Movement Core (50) Location -7/Factory Parts ------- > --- POWER (1) -------- (None) > --- PROPULSION (6) --- (None) > --- UTILITY (4) ------ (None) > --- WEAPON (2) ------- (None) > --- INVENTORY (5) ---- Aluminum Leg Carbon-fiber Leg Improved Carbon-fiber Leg Grenade Launcher Peak State ------------ > --- POWER ------------ Light Nuclear Core > --- PROPULSION ------- Titanium Leg Titanium Leg Improved Carbon-fiber Leg Improved Carbon-fiber Leg Improved VTOL Module Improved VTOL Module > --- UTILITY ---------- Medium Storage Unit Advanced Targeting Computer > --- WEAPON ----------- Improved Medium Laser Improved Grenade Launcher > --- INVENTORY -------- Titanium Leg Flight Unit Flight Unit Improved Flight Unit Large Storage Unit Weight Redist. System Light Assault Rifle Grenade Launcher [Rating: 36] Favorites ----------- Power Light Ion Engine Engine Light Ion Engine Power Core Light Nuclear Core Propulsion Aluminum Leg Leg Aluminum Leg Flight Unit Improved Flight Unit Utility Large Storage Unit Device Improved Terrain Scanner Storage Large Storage Unit Processor Advanced Targeting Computer Weapon Light Assault Rifle Energy Gun Improved Medium Laser Ballistic Gun Light Assault Rifle Launcher Grenade Launcher Build | -11 -10 -9 -8 -7 ------- Run | Yrd Mat Mat Mat Fac Slots Evolved 6 | . . 2 2 2 Power . | . . . . . Propulsion 4 | . . 2 2 . Utility 2 | . . . . 2 Weapon . | . . . . . Parts Attached 43 | 6 2 6 12 17 Power 3 | 1 . . 1 1 Engine 2 | 1 . . 1 . Core 1 | . . . . 1 Reactor . | . . . . . Propulsion 24 | 2 . 5 7 10 Treads . | . . . . . Leg 11 | 2 . 2 . 7 Wheel . | . . . . . Hover . | . . . . . Flight 13 | . . 3 7 3 Utility 10 | 1 1 1 2 5 Device 3 | . 1 . . 2 Storage 6 | 1 . 1 1 3 Processor 1 | . . . 1 . Hackware . | . . . . . Protection . | . . . . . Artifact . | . . . . . Weapon 6 | 2 1 . 2 1 Energy Gun 3 | 1 . . 1 1 Energy Cannon . | . . . . . Ballistic Gun 1 | 1 . . . . Ballistic Cannon . | . . . . . Launcher 2 | . 1 . 1 . Special Weapon . | . . . . . Impact Weapon . | . . . . . Slashing Weapon . | . . . . . Piercing Weapon . | . . . . . Special Melee Weapon . | . . . . . Unidentified Prototypes 3 | . . 1 2 . Parts Lost 15 | . . . 4 11 Power 3 | . . . 2 1 Propulsion 8 | . . . 1 7 Utility 1 | . . . . 1 Weapon 3 | . . . 1 2 Highest Loss Streak 11 | . . . 3 11 To Critical Strikes . | . . . . . Average Slot Usage (%) 86 | . 92 96 89 74 Engine 7 | . 14 11 7 . Core 1 | . . . . 3 Leg 27 | . 28 34 . 32 Flight 12 | . . 6 53 6 Device 5 | . 7 11 . 3 Storage 12 | . 14 11 9 13 Processor 2 | . . . 7 3 Energy Gun 1 | . 2 . . 4 Ballistic Gun 7 | . 14 11 9 . Launcher 7 | . 11 11 1 5 Naked Turns 24 | . . . . 24 Heaviest Build 46 | 10 13 28 17 46 Greatest Support 87 | 20 20 40 29 87 Greatest Overweight (x) 5 | . . 5 . 1 Average Overweight (x) . | . . . . . Largest Inventory Capacity 15 | 8 8 15 15 15 Average Capacity 11 | 6 8 14 10 12 Most Carried 10 | 2 8 10 10 10 Average Carried 6 | 1 4 7 9 6 Final Capacity 15 | 8 8 15 10 5 Final Carried 10 | 2 8 10 8 4 Class Distribution -------------------- 85% | Mutant 14% | Sprinter Dominant Class ---------------- Mutant | -10/Materials Mutant | -9/Materials Sprinter | -8/Materials Mutant | -7/Factory Resources | -11 -10 -9 -8 -7 ----------- Run | Yrd Mat Mat Mat Fac Matter Collected 397 | 164 59 83 . 91 Remotely . | . . . . . Salvage Created 469 | . 220 83 . 166 Parts 29 | . 14 10 . 5 Haulers Intercepted 2 | . 1 1 . . Recyclers Shooed . | . . . . . Parts Field Recycled . | . . . . . Retrieved Matter . | . . . . . Parts Self-Destructed . | . . . . . Prevented . | . . . . . Kills | -11 -10 -9 -8 -7 ------- Run | Yrd Mat Mat Mat Fac Combat Hostiles Destroyed 9 | . 4 2 . 3 Guns 6 | . 1 2 . 3 AOE 3 | . 3 . . . Classes Destroyed 6 | . 4 1 . 1 Tunneler 1 | . 1 . . . Hauler 2 | . 1 1 . . Recycler 1 | . 1 . . . Swarmer 2 | . . 2 . . Grunt 6 | . 4 . . 2 Sentry 1 | . . . . 1 Best Kill Streak 4 | . 4 1 . 2 Combat Bots Only 3 | . 3 1 . 2 Max Kills in Single Turn 4 | . 4 1 . 1 Gunslinging . | . . . . . Exploded 3 | . 3 . . . Melee . | . . . . . Uniques/NPCs Destroyed . | . . . . . Combat | -11 -10 -9 -8 -7 -------- Run | Yrd Mat Mat Mat Fac Hostile Shots Fired 326 | . 5 27 34 260 Missed 141 | . 2 13 10 116 Damage Taken 2530 | . 104 114 376 1936 Core 851 | . 54 25 55 717 Absorbed by Shields . | . . . . . Core Remaining (%) 90 | 100 78 93 90 . Volleys Fired 75 | . 10 24 20 21 Largest 2 | . 2 1 1 1 Hottest 60 | . 60 20 20 56 Shots Fired 84 | . 19 24 20 21 Gun 76 | . 11 24 20 21 Cannon . | . . . . . Launcher 8 | . 8 . . . Special . | . . . . . Kinetic 54 | . 10 24 20 . Thermal 22 | . 1 . . 21 Explosive 8 | . 8 . . . Electromagnetic . | . . . . . Robot Hit Streak 12 | . 3 9 4 12 Robot Miss Streak 5 | . 5 2 5 3 Penetration Max . | . . . . . Secondary Targets . | . . . . . Shots Hit Robots 48 | . 5 15 13 15 Core Hits 25 | . 12 5 1 7 Critical Kills . | . . . . . Critical Parts Destroyed . | . . . . . Critical Strikes . | . . . . . Melee Attacks . | . . . . . Impact . | . . . . . Slashing . | . . . . . Piercing . | . . . . . Sneak Attacks . | . . . . . Combat Hostiles . | . . . . . Follow-up Attacks . | . . . . . Damage Inflicted 866 | . 370 125 99 272 Guns 511 | . 28 119 99 265 Cannons . | . . . . . Explosions 335 | . 335 . . . Melee . | . . . . . Ramming 20 | . 7 6 . 7 Kinetic 246 | . 28 119 99 . Thermal 265 | . . . . 265 Explosive 335 | . 335 . . . Electromagnetic . | . . . . . Impact . | . . . . . Slashing . | . . . . . Piercing . | . . . . . Highest Corruption 4 | . . . . 4 Average Corruption 2 | . . . . 2 Corruption Purged . | . . . . . Corruption Blocked . | . . . . . Effects 1 | . . . . 1 Matter Fused 1 | . . . . 1 Overload Shots . | . . . . . Overflow Damage . | . . . . . Projectiles . | . . . . . Explosions . | . . . . . Melee . | . . . . . Knockbacks . | . . . . . Impact . | . . . . . Kinetic . | . . . . . Secondary . | . . . . . Self-Inflicted Damage 73 | . 70 . . 3 Shots 3 | . 3 . . . Rammed 2 | . . . . 2 Targets Rammed 7 | . 4 1 . 2 Kicked 5 | . 4 1 . . Crushed . | . . . . . Highest Temperature 106 | . 20 . 11 106 Average Temperature 28 | . 9 . 6 38 Received Heat Transfer 831 | . 18 . 126 687 Siege Activations . | . . . . . Robots Corrupted . | . . . . . Combat Hostiles . | . . . . . Parts Fried . | . . . . . Impact Corruptions . | . . . . . Robots Melted . | . . . . . Combat Hostiles . | . . . . . Parts Melted 2 | . . . . 2 Heat Transferred 555 | . . . . 555 Parts Sabotaged . | . . . . . Parts Stolen . | . . . . . Parts Stripped . | . . . . . Power Chain Reactions . | . . . . . Alert | -11 -10 -9 -8 -7 ------- Run | Yrd Mat Mat Mat Fac Peak Influence 234 | . 234 190 65 127 Initial 98 | . . 98 5 29 Average 78 | . 106 139 11 51 Maximum Alert Level 1 | . 1 . . . Low Security (%) 98 | 100 88 100 100 100 Level 1 1 | . 11 . . . Level 2 . | . . . . . Level 3 . | . . . . . Level 4 . | . . . . . Level 5 . | . . . . . High Security . | . . . . . Max Security . | . . . . . Squads Dispatched 7 | . 3 . 1 3 Investigation 3 | . 1 . . 2 Extermination 1 | . . . . 1 Reinforcement 3 | . 2 . 1 . Assault . | . . . . . Garrison . | . . . . . Intercept . | . . . . . Searches Triggered . | . . . . . Construction Impeded . | . . . . . Haulers Reinforced . | . . . . . Active Scanning Responses . | . . . . . Cargo Convoy Interrupts . | . . . . . Stealth | -11 -10 -9 -8 -7 --------- Run | Yrd Mat Mat Mat Fac Distress Signals 3 | . 1 1 1 . Communications Jammed . | . . . . . Distress Signals . | . . . . . Times Spotted 37 | . 4 7 11 15 Peak Tracking Total 12 | . 2 4 9 12 Tactical Retreats 6 | . . 3 2 1 Traps | -11 -10 -9 -8 -7 ------- Run | Yrd Mat Mat Mat Fac Traps Triggered 1 | . . . . 1 Indirectly . | . . . . . Trap Hack Attempts . | . . . . . Triggered . | . . . . . Disarmed . | . . . . . Reprogrammed . | . . . . . Reused . | . . . . . Traps Extracted . | . . . . . Installed . | . . . . . Triggered . | . . . . . Machines | -11 -10 -9 -8 -7 ---------- Run | Yrd Mat Mat Mat Fac Machines Disabled 2 | . 2 . . . Max in Single Turn 2 | . 2 . . . Machines Repaired . | . . . . . Machines Dismantled . | . . . . . Machines Sabotaged . | . . . . . Overloaded Fab Kills . | . . . . . Hacking | -11 -10 -9 -8 -7 --------- Run | Yrd Mat Mat Mat Fac Machines Accessed 7 | . 1 . 5 1 Terminals 6 | . 1 . 4 1 Fabricators . | . . . . . Repair Stations . | . . . . . Recycling Units . | . . . . . Scanalyzers 1 | . . . 1 . Garrison Access . | . . . . . Total Hacks 24 | . 5 . 15 4 Successful 13 | . 2 . 9 2 Failed 11 | . 3 . 6 2 Catastrophic 4 | . 1 . 3 . Database Lockouts . | . . . . . Manual 5 | . 2 . 1 2 Terminals 20 | . 5 . 11 4 Fabricators . | . . . . . Repair Stations . | . . . . . Recycling Units . | . . . . . Scanalyzers 4 | . . . 4 . Garrison Access . | . . . . . Terminal Hacks 9 | . 2 . 5 2 Branch Access Points 2 | . . . 1 1 Alert Level 1 | . . . 1 . Unreport Threat 2 | . . . 2 . Surveillance Status 1 | . 1 . . . Hauler Manifests 1 | . . . 1 . Zone Layout 2 | . 1 . . 1 Fabricator Hacks . | . . . . . Repair Station Hacks . | . . . . . Recycling Unit Hacks . | . . . . . Scanalyzer 4 | . . . 4 . Insert Component 2 | . . . 2 . Analyze 2 | . . . 2 . Garrison Access Hacks . | . . . . . Unauthorized Hacks . | . . . . . Terminals . | . . . . . Fabricators . | . . . . . Repair Stations . | . . . . . Recycling Units . | . . . . . Scanalyzers . | . . . . . Garrison Access . | . . . . . Data Cores Recovered . | . . . . . Used . | . . . . . Hacking Detections 7 | . 1 . 5 1 Full Trace Events 2 | . 1 . . 1 Feedback Events . | . . . . . Feedback Blocked . | . . . . . Robot Schematics Acquired . | . . . . . Robots Built . | . . . . . Authchips . | . . . . . Time . | . . . . . Total Robot Build Rating . | . . . . . Part Schematics Acquired 2 | . . . 2 . Parts Built . | . . . . . Authchips . | . . . . . Time . | . . . . . Total Part Build Rating . | . . . . . Parts Repaired . | . . . . . Time . | . . . . . Parts Recycled . | . . . . . Recycled Matter . | . . . . . Retrieved Matter . | . . . . . Retrieved Components . | . . . . . Parts Scanalyzed 2 | . . . 2 . Part Schematics Acquired 2 | . . . 2 . Parts Damaged . | . . . . . Bothacking | -11 -10 -9 -8 -7 ------------ Run | Yrd Mat Mat Mat Fac Used RIF Installer . | . . . . . Robots Hacked . | . . . . . Non-combat . | . . . . . Combat . | . . . . . Robot Hacks Applied . | . . . . . Relay Couplers Released . | . . . . . Fabnet Peak Effective % . | . . . . . Robots Rewired . | . . . . . Allies Hacked . | . . . . . Hacks Repelled . | . . . . . Allies | -11 -10 -9 -8 -7 -------- Run | Yrd Mat Mat Mat Fac Total Allies . | . . . . . Largest Group . | . . . . . Highest-Rated Group . | . . . . . Highest-Rated Ally . | . . . . . Total Orders . | . . . . . Ally Attacks . | . . . . . Total Damage . | . . . . . Kills . | . . . . . Allies Corrupted . | . . . . . Allies Melted . | . . . . . Intel | -11 -10 -9 -8 -7 ------- Run | Yrd Mat Mat Mat Fac Robot Analysis Total . | . . . . . Derelict Logs Recovered . | . . . . . Drone Launches . | . . . . . Drone Recoveries . | . . . . . Exploration | -11 -10 -9 -8 -7 ------------- Run | Yrd Mat Mat Mat Fac Turns Passed 1529 | 93 257 447 206 526 Spaces Moved 1393 | 75 181 273 401 463 Core 54 | 10 . . . 44 Treads . | . . . . . Legs 743 | 65 181 200 . 297 Wheels . | . . . . . Hover . | . . . . . Flight 596 | . . 73 401 122 Fastest Speed 23 | 50 120 104 23 28 Average Speed 85 | 110 120 120 28 95 Slowest Speed 390 | 120 120 390 31 200 Overloaded Moves . | . . . . . Propulsion Burnouts . | . . . . . Robots Hopped 17 | . . . 14 3 Cave-ins Triggered . | . . . . . Exploration Rate (%) 17 | 4 28 15 30 9 Regions Visited 4 Branch Regions . Pre-discovered Areas . | . . . . . Known Exits Taken . | . . . . . Unknown Exits Taken 4 | 1 1 1 1 . Scrap Searched . | . . . . . Spaces Dug . | . . . . . Terrain Destroyed 93 | . 93 . . . Melee . | . . . . . Projectile . | . . . . . AOE 93 | . 93 . . . Terrain Rammed . | . . . . . Walls Destroyed . | . . . . . Machines Disabled . | . . . . . Actions | -11 -10 -9 -8 -7 --------- Run | Yrd Mat Mat Mat Fac Total 1649 | 82 203 373 462 529 Wait 89 | . . 58 31 . Move 1355 | 74 180 272 372 457 Hop 17 | . . . 14 3 Pick Up 29 | 2 6 6 5 10 Fast Attach 17 | 6 1 3 3 4 Attach 23 | . 1 2 8 12 Detach 9 | . 1 . 3 5 Swap 3 | . . 1 1 1 Drop 25 | . . 6 5 14 Fire 75 | . 10 24 20 21 Melee . | . . . . . Ram 2 | . . . . 2 Kick 5 | . 4 1 . . Crush . | . . . . . Escape Stasis . | . . . . . Rewire . | . . . . . Trap . | . . . . . Miscellaneous . | . . . . . Route ------- -11/Scrapyard -10/Materials -9/Materials -8/Materials -7/Factory (discovered 2 exits: Low x2) History --------- Turn | Location | Event 9 | -11/Scrapyard | Discovered new exit (range 15) 94 | -11/Scrapyard | Entered Materials 304 | -10/Materials | Build established: Mutant 321 | -10/Materials | Discovered new exit (range 15) 351 | -10/Materials | Entered another Materials area 351 | -9/Materials | Evolved 2 slots: Propulsion x2 603 | -9/Materials | Discovered new exit (range 16) 798 | -9/Materials | Entered another Materials area 798 | -8/Materials | Evolved 2 slots: Propulsion x2 997 | -8/Materials | Discovered new exit (range 9) 1004 | -8/Materials | Entered Factory 1004 | -7/Factory | Evolved 2 slots: Utility x2 1033 | -7/Factory | Lost 3 parts (1p1n1w) 1185 | -7/Factory | Identified exit to Lower Caves 1478 | -7/Factory | Core integrity fell below 50% 1507 | -7/Factory | Core integrity fell below 20% 1530 | -7/Factory | Destroyed by S-27 Virus with Autogun Last Messages --------------- Imp. Medium Laser destroyed. Imp. Carbon-fiber Leg destroyed. M-28 Smith repairs P-60 Hacker. Titanium Leg destroyed. Dropped Titanium Leg. Dropped Lrg. Storage Unit. Dropped Med. Storage Unit. M-28 Smith repairs G-47 Trooper. Dropped Com. Matter Pod. P-60 Hacker resets G-47 Trooper, system corruption cleaned. M-28 Smith repairs W-25 Informer. Imp. VTOL Module destroyed. U-05 Engineer builds a Door. K-01 Serf collects debris. Imp. VTOL Module destroyed. Imp. Flight Unit destroyed. Slammed into U-05 Engineer. Acquired Carbon-fiber Leg. System corrupted: Matter fused (-8). Map ----- +----------------------------------------------------+ | | | | | ?????????????????????????????????????????????????? | | ?????????????????????????????????????????????????? | | ?????????????????????????????????????????????????? | | ?????????????????????????????????????????????????? | | ?????????????????????????????????????????????????? | | ?????????????????????????????????????????????????? | | ??????????????????>??????????????????????????????? | | ?????????????????????????????????????????????????? | | ?????????????????????????????????????????????????? | | ?????????????????????????????????????????????????? | | ?????????????????????????????????????????????????? | | ?????????????????????????????????????????????????? | | ?????????????????????????????????????????????????? | | ?????????????????????????????????????????????????? | | ?????????????????????????????????????????????????? | | ?????????????????????????????????????????????????? | | ?????????????????????????????????????????????????? | | ?????????????????????????????????????????????????? | | ?????????????????????????????????????????????????? | | ?????????????????????????????????????????????????? | | ???????????????????????????????????????????####### | | ?????????????######################+###????# | | ?????????? s ###### | | ?????????? @ s + ! | | ?????????? s ###### =! | | ?????????????######## ##########+###????# = | | ????????????????????# ??????????????????# | | ????????????????????# ??????????????????# | | ????????????????????# ??????????????????# | | ????????????????????# ???????????????????# """ | | ???????????????????? ???????????????????# """ | | ???????????????????## ???????????????????# """ | | ????????????????????# ???????????????????# | | ????????????????????# ????????????????????####### | | ????????????????????# ??????????????????????????? | | ????????????????????# ??????????????????????????? | | ????????????????????# ??????????????????????????? | | ????????????????????? ???????????????????????????? | | ?????????????????????????????????????????????????? | | ?????????????????????????????????????????????????? | | ?????????????????????????????????????????????????? | | ?????????????????????????????????????????????????? | | ?????????????????????????????????????????????????? | | ?????????????????????????????????????????????????? | | ?????????????????????????????????????????????????? | | ?????????????????????????????????????????????????? | | ?????????????????????????????????????????????????? | | ?????????????????????????????????????????????????? | +----------------------------------------------------+ Best States ------------- Heat Dissipation 34 Energy Generation 14 Energy Capacity 160 Matter Stores 204 Matter Capacity 450 Sight Range 16 Robot Scan Range 15 Terrain Scan Range 16 Terrain Scan Density 10 Evasion (%) 64 Targeting Accuracy 8 Item Schematics ----------------- Flight Unit | -8/Materials | Scanalyzed Imp. VTOL Module | -8/Materials | Scanalyzed Robot Schematics ------------------ None Fabricated ------------ Nothing Alien Tech Used ----------------- None Achievements -------------- None Challenges ------------ None Game ------ Seed MissileLightningSubcomponent Manual? 0 Play Time 00:22:06 Cumulative 16.5 hours Start 2024.04.14 @ 21:39:25 End 2024.04.14 @ 22:25:56 Sessions 1 Manual Loads 0 Difficulty Rogue Special Mode None Game No. 56 Rogue 56 Adventurer 0 Explorer 0 Win Type - Total 0 Types 0/0/0/0/0/0/0/0/0 Lore% 14 Gallery% 23 Achievement% 20 Wizard Run 0 Options --------- Layout 1 ASCII 1 Keyboard 0 Movement Arrows Keybinds 0 Fullscreen 1 Font 18/SmallcapsGlow Map View 50x40 Zoom Use 0% Tactical HUD 0 Map Filters NONE Filters NONE Steam 1 RUN: 39fdd2c0-9334-416a-b503-3ea85cd62a7e